fUST/lending_fUST_20250617
["ID","MTS","AMOUNT","RATE_DAILY","PERIOD"]
[366174016,1750098632003,-300.0,0.00020231,2]
[366174017,1750098632013,-37336.55534,0.00020231,2]
[366174018,1750098632023,-168.39379902,0.00020231,2]
[366174019,1750098632033,-24900.0,0.00020234,2]
[366174020,1750098632043,-170.231,0.00020468,2]
[366174021,1750098632053,-293.0281551,0.000208,2]
[366174022,1750098632063,-10176.72277374,0.00020869,5]
[366174023,1750098632073,-160.0,0.0002103,2]
[366174024,1750098632082,-229.90125484,0.0002103,2]
[366174025,1750098632092,-5000.0,0.00021032,2]
[366174026,1750098632103,-1364.84,0.00021042,2]
[366174027,1750098632113,-500.0,0.00021064,2]
[366174028,1750098632122,-180.0,0.00021777,2]
[366174029,1750098632132,-420.0,0.00021777,2]
[366174030,1750098632142,-500.0,0.00021874,2]
[366174031,1750098632152,-512.830546,0.00021874,2]
[366174032,1750098632164,-160.0,0.00021904,2]
[366174033,1750098632174,-263.87,0.00021907,10]
[366174034,1750098632183,-460.0,0.00021917,2]
[366174035,1750098632193,-460.0,0.00021917,4]
[366174036,1750098632203,-460.0,0.00021917,2]
[366174037,1750098632213,-460.0,0.00021917,2]
[366174038,1750098632224,-460.0,0.00021917,4]
[366174039,1750098632237,-460.0,0.00021917,4]
[366174040,1750098632248,-460.0,0.00021917,4]
[366174041,1750098632258,-460.0,0.00021917,4]
[366174042,1750098632268,-460.0,0.00021917,4]
[366174043,1750098632278,-460.0,0.00021917,4]
[366174044,1750098632287,-460.0,0.00021917,4]
[366174045,1750098632298,-460.0,0.00021917,4]
[366174046,1750098632308,-460.0,0.00021917,4]
[366174047,1750098632319,-460.0,0.00021917,4]
[366174048,1750098632329,-460.0,0.00021917,4]
[366174049,1750098632339,-460.0,0.00021917,4]
[366174050,1750098632349,-460.0,0.00021917,4]
[366174051,1750098632358,-460.0,0.00021917,4]
[366174052,1750098632368,-159.41999682,0.00021917,4]
[366174053,1750098632377,-662.39,0.00021917,4]
[366174054,1750098632387,-460.0,0.00021917,4]
[366174055,1750098632397,-460.0,0.00021917,4]
[366174056,1750098632407,-460.0,0.00021917,4]
[366174057,1750098632417,-460.0,0.00021917,4]
[366174058,1750098632427,-460.0,0.00021917,4]
[366174059,1750098632436,-460.0,0.00021917,4]
[366174060,1750098632446,-460.0,0.00021917,4]
[366174061,1750098632456,-460.0,0.00021917,4]
[366174062,1750098632465,-460.0,0.00021917,4]
[366174063,1750098632475,-460.0,0.00021917,4]
[366174064,1750098632486,-460.0,0.00021917,4]
[366174065,1750098632496,-460.0,0.00021917,4]
[366174066,1750098632505,-460.0,0.00021917,4]
[366174067,1750098632515,-460.0,0.00021917,4]
[366174068,1750098632530,-673.75,0.00021917,4]
[366174069,1750098632539,-844.33,0.00021917,4]
[366174070,1750098632549,-460.0,0.00021917,4]
[366174071,1750098632559,-460.0,0.00021917,4]
[366174072,1750098632569,-537.42,0.00021917,4]
[366174073,1750098632579,-470.16,0.00021917,4]
[366174074,1750098632589,-460.0,0.00021917,4]
[366174075,1750098632600,-460.0,0.00021917,4]
[366174076,1750098632610,-500.0,0.00022027,2]
[366174077,1750098632621,-500.0,0.00022031,2]
[366174078,1750098632631,-347.80511078,0.00022091,2]
[366174079,1750098632641,-500.0,0.000221,2]
[366174080,1750098632651,-500.0,0.000221,2]
[366174081,1750098632661,-400.0,0.00022191,2]
[366174082,1750098632671,-459.99499075,0.00022191,2]
[366174083,1750098632681,-460.0,0.00022191,2]
[366174084,1750098632691,-460.0,0.00022191,4]
[366174085,1750098632701,-460.0,0.00022191,4]
[366174086,1750098632711,-460.0,0.00022191,4]
[366174087,1750098632721,-460.0,0.00022191,4]
[366174088,1750098632731,-460.0,0.00022191,4]
[366174089,1750098632741,-460.0,0.00022191,4]
[366174090,1750098632750,-460.0,0.00022191,4]
[366174091,1750098632760,-460.0,0.00022191,4]
[366174092,1750098632769,-460.0,0.00022191,4]
[366174093,1750098632779,-460.0,0.00022191,4]
[366174094,1750098632789,-662.39,0.00022191,4]
[366174095,1750098632799,-460.0,0.00022191,4]
[366174096,1750098632809,-460.0,0.00022191,4]
[366174097,1750098632819,-460.0,0.00022191,4]
[366174098,1750098632829,-460.0,0.00022191,4]
[366174099,1750098632839,-460.0,0.00022191,4]
[366174100,1750098632849,-460.0,0.00022191,4]
[366174101,1750098632859,-460.0,0.00022191,4]
[366174102,1750098632868,-460.0,0.00022191,4]
[366174103,1750098632878,-460.0,0.00022191,4]
[366174104,1750098632887,-673.75,0.00022191,4]
[366174105,1750098632897,-844.33,0.00022191,4]
[366174106,1750098632907,-382.89,0.00022191,4]
[366174107,1750098632917,-460.0,0.00022191,4]
[366174108,1750098632927,-537.42,0.00022191,4]
[366174109,1750098633105,-470.16,0.00022191,4]
[366174110,1750098633116,-460.0,0.00022191,4]
[366174111,1750098633127,-460.0,0.00022191,4]
[366174112,1750098633138,-5000.0,0.00022239,2]
[366174113,1750098633149,-207.4,0.00022239,2]
[366174114,1750098633162,-500.0,0.00022239,2]
[366174115,1750098633172,-500.0,0.00022239,2]
[366174116,1750098633182,-500.0,0.00022239,2]
[366174117,1750098633194,-500.0,0.00022239,2]
[366174118,1750098633204,-500.0,0.00022239,2]
[366174119,1750098633215,-500.0,0.00022239,2]
[366174120,1750098633224,-514.63180266,0.00022239,2]
[366174121,1750098633235,-500.0,0.00022239,2]
[366174122,1750098633245,-500.0,0.00022239,2]
[366174123,1750098633255,-500.0,0.00022239,2]
[366174124,1750098633265,-500.0,0.00022239,2]
[366174125,1750098633275,-500.0,0.00022239,2]
[366174126,1750098633284,-500.0,0.00022239,2]
[366174127,1750098633295,-500.0,0.00022239,2]
[366174128,1750098633305,-500.0,0.00022239,2]
[366174129,1750098633315,-500.0,0.00022239,2]
[366174130,1750098633326,-500.0,0.00022239,2]
[366174131,1750098633335,-500.0,0.00022239,2]
[366174132,1750098633345,-1012.68678882,0.000223,2]
[366174133,1750098633355,-552.08,0.00022455,3]
[366174134,1750098633364,-327.5,0.00022455,3]
[366174135,1750098633374,-460.0,0.00022465,2]
[366174136,1750098633385,-460.0,0.00022465,4]
[366174137,1750098633395,-460.0,0.00022465,4]
[366174138,1750098633405,-460.0,0.00022465,4]
[366174139,1750098633415,-460.0,0.00022465,4]
[366174140,1750098633425,-460.0,0.00022465,4]
[366174141,1750098633435,-480.15,0.00022465,4]
[366174142,1750098633445,-460.0,0.00022465,4]
[366174143,1750098633455,-460.0,0.00022465,4]
[366174144,1750098633465,-662.39,0.00022465,4]
[366174145,1750098633475,-460.0,0.00022465,4]
[366174146,1750098633485,-460.0,0.00022465,4]
[366174147,1750098633494,-460.0,0.00022465,4]
[366174148,1750098633504,-460.0,0.00022465,4]
[366174149,1750098633514,-673.75,0.00022465,4]
[366174150,1750098633524,-844.33,0.00022465,4]
[366174151,1750098633534,-537.42,0.00022465,4]
[366174152,1750098633545,-470.16,0.00022465,4]
[366174153,1750098633555,-460.0,0.00022465,4]
[366174154,1750098633565,-460.0,0.00022739,2]
[366174155,1750098633575,-460.0,0.00022739,4]
[366174156,1750098633586,-460.0,0.00022739,4]
[366174157,1750098633596,-460.0,0.00022739,4]
[366174158,1750098633606,-460.0,0.00022739,4]
[366174159,1750098633617,-460.0,0.00022739,4]
[366174160,1750098633627,-413.86,0.00022739,4]
[366174161,1750098633637,-662.39,0.00022739,4]
[366174162,1750098633647,-460.0,0.00022739,4]
[366174163,1750098633656,-460.0,0.00022739,4]
[366174164,1750098633666,-460.0,0.00022739,4]
[366174165,1750098633675,-460.0,0.00022739,4]
[366174166,1750098633685,-673.75,0.00022739,4]
[366174167,1750098633695,-844.33,0.00022739,4]
[366174168,1750098633705,-537.42,0.00022739,4]
[366174169,1750098633715,-470.16,0.00022739,4]
[366174170,1750098633724,-347.80511074,0.0002274,2]
[366174171,1750098633734,-5000.0,0.00022787,2]
[366174172,1750098633744,-883.90438298,0.00022899,2]
[366174173,1750098633755,-430.89292246,0.00022941,2]
[366174174,1750098633765,-2729.68,0.00022955,2]
[366174175,1750098633775,-652.64,0.00023003,3]
[366174176,1750098633786,-326.32,0.00023003,3]
[366174177,1750098633796,-163.16,0.00023003,3]
[366174178,1750098633806,-489.48,0.00023003,3]
[366174179,1750098633817,-160.0,0.00023012,2]
[366174180,1750098633827,-153.9003944,0.00023013,2]
[366174181,1750098633837,-460.0,0.00023013,4]
[366174182,1750098633847,-460.0,0.00023013,4]
[366174183,1750098633859,-460.0,0.00023013,4]
[366174184,1750098633869,-460.0,0.00023013,4]
[366174185,1750098633880,-460.0,0.00023013,4]
[366174186,1750098633891,-662.39,0.00023013,4]
[366174187,1750098633902,-377.71033614,0.00023013,4]
[366174188,1750098633912,-460.0,0.00023013,4]
[366174189,1750098633923,-460.0,0.00023013,4]
[366174190,1750098633933,-460.0,0.00023013,4]
[366174191,1750098633943,-673.75,0.00023013,4]
[366174192,1750098633953,-844.33,0.00023013,4]
[366174193,1750098633963,-537.42,0.00023013,4]
[366174194,1750098633973,-470.16,0.00023013,4]
[366174195,1750098633983,-430.89292246,0.00023105,2]
[366174196,1750098633993,-74335.43578803,0.000232,2]
[366174211,1750098637729,-500.0,0.0002023,2]
[366174212,1750098637740,-195.22970508,0.0002023,2]
[366174213,1750098637751,-1364.84,0.00021661,2]
[366174214,1750098637761,-372.71271674,0.00023156,2]
[366174215,1750098637771,-30286.31960483,0.000232,2]
[366174216,1750098637781,-500.0,0.00023256,2]
[366174217,1750098637790,-460.0,0.00023287,4]
[366174218,1750098637800,-460.0,0.00023287,4]
[366174219,1750098637810,-460.0,0.00023287,4]
[366174220,1750098637820,-460.0,0.00023287,4]
[366174221,1750098637831,-460.0,0.00023287,4]
[366174222,1750098637842,-662.39,0.00023287,4]
[366174223,1750098637852,-254.36014627,0.00023287,4]
[366174224,1750098637862,-460.0,0.00023287,4]
[366174225,1750098637872,-460.0,0.00023287,4]
[366174226,1750098637881,-673.75,0.00023287,4]
[366174227,1750098637891,-844.33,0.00023287,4]
[366174228,1750098637901,-537.42,0.00023287,4]
[366174229,1750098637910,-470.16,0.00023287,4]
[366174230,1750098637920,-500.0,0.00023288,2]
[366174231,1750098637929,-335.27162208,0.00023288,2]
[366174232,1750098637939,-768.21,0.000233,2]
[366174233,1750098637948,-573.9994554,0.00023315,2]
[366174234,1750098637958,-158.9308009,0.00023315,2]
[366174235,1750098637967,-177.073212,0.00023315,2]
[366174236,1750098637977,-158.9308009,0.00023315,2]
[366174237,1750098637986,-153.0,0.00023315,2]
[366174238,1750098637996,-177.073212,0.00023315,2]
[366174239,1750098638006,-573.9994554,0.00023315,2]
[366174240,1750098638016,-60462.92837439,0.0002335,2]
[366174241,1750098638025,-347.80511074,0.0002339,2]
[366174242,1750098638035,-430.89292246,0.00023411,2]
[366174243,1750098638045,-460.0,0.00023561,4]
[366174244,1750098638055,-460.0,0.00023561,4]
[366174245,1750098638064,-460.0,0.00023561,4]
[366174246,1750098638075,-460.0,0.00023561,4]
[366174247,1750098638085,-460.0,0.00023561,4]
[366174248,1750098638095,-662.39,0.00023561,4]
[366174249,1750098638105,-460.0,0.00023561,4]
[366174250,1750098638115,-460.0,0.00023561,4]
[366174251,1750098638125,-673.75,0.00023561,4]
[366174252,1750098638135,-844.33,0.00023561,4]
[366174253,1750098638145,-537.42,0.00023561,4]
[366174254,1750098638160,-470.16,0.00023561,4]
[366174255,1750098638169,-53794.10610291,0.00023597,2]
[366174256,1750098638179,-151.0,0.000236,10]
[366174257,1750098638189,-215.0738,0.00023608,2]
[366174258,1750098638199,-562.73570717,0.00023613,7]
[366174259,1750098638209,-2729.68,0.0002363,2]
[366174260,1750098638219,-513.82596414,0.0002365,2]
[366174261,1750098638229,-430.89292246,0.00023662,2]
[366174262,1750098638239,-653.0,0.00023712,2]
[366174263,1750098638248,-2160.0,0.00023712,2]
[366174264,1750098638258,-406.0,0.00023712,2]
[366174265,1750098638267,-964.0,0.00023712,2]
[366174266,1750098638277,-587.0,0.00023712,2]
[366174267,1750098638286,-500.0,0.00023773,2]
[366174268,1750098638296,-500.0,0.00023773,2]
[366174269,1750098638306,-500.0,0.00023773,2]
[366174270,1750098638316,-500.0,0.00023773,2]
[366174271,1750098638326,-501.65890684,0.00023773,2]
[366174272,1750098638335,-500.0,0.00023773,2]
[366174273,1750098638345,-600.0,0.00023773,2]
[366174274,1750098638355,-500.0,0.00023773,2]
[366174275,1750098638365,-500.0,0.00023773,2]
[366174276,1750098638375,-500.0,0.00023773,2]
[366174277,1750098638384,-30959.62449663,0.0002378,5]
[366174278,1750098638394,-10232.49732289,0.000238,3]
[366174279,1750098638404,-168319.71896813,0.000238,3]
[366174280,1750098638414,-151.0,0.000238,10]
[366174281,1750098638423,-215.07,0.00023835,4]
[366174282,1750098638433,-491.74,0.00023835,4]
[366174283,1750098638443,-460.0,0.00023835,4]
[366174284,1750098638453,-460.0,0.00023835,4]
[366174285,1750098638463,-460.0,0.00023835,4]
[366174286,1750098638473,-662.39,0.00023835,4]
[366174287,1750098638482,-460.0,0.00023835,4]
[366174288,1750098638491,-460.0,0.00023835,4]
[366174289,1750098638501,-673.75,0.00023835,4]
[366174290,1750098638511,-844.33,0.00023835,4]
[366174292,1750098638520,-537.42,0.00023835,4]
[366174293,1750098638530,-470.16,0.00023835,4]
[366174294,1750098638539,-229.26055653,0.00023846,2]
[366174295,1750098638549,-500.0,0.000239,2]
[366174297,1750098638559,-500.0,0.000239,2]
[366174299,1750098638569,-500.25304027,0.000239,2]
[366174301,1750098638579,-430.89292246,0.00023938,2]
[366174303,1750098638588,-73308.40506916,0.00023999,2]
[366174305,1750098638598,-11865.06916262,0.00024,2]
[366174307,1750098638607,-12307.99558207,0.00024,2]
[366174309,1750098638616,-365.4091647,0.00024,2]
[366174311,1750098638627,-365.4091647,0.00024,2]
[366174314,1750098638637,-365.010441,0.00024,2]
[366174316,1750098638646,-730.5525136,0.00024,2]
[366174318,1750098638656,-365.2762568,0.00024,2]
[366174319,1750098638665,-604.00655226,0.00024,2]
[366174321,1750098638674,-117465.20689434,0.00024,2]
[366174324,1750098638684,-177.979999,0.00024,7]
[366174325,1750098638694,-49458.11538872,0.00024,2]
[366174328,1750098638707,-20224.8708474,0.00024,2]
[366174437,1750098639858,-215.37192253,0.00019999,2]
[366174439,1750098639868,-186.67474246,0.00019999,2]
[366174441,1750098639878,-500.0,0.00019999,2]
[366174443,1750098639888,-903.51583501,0.00024,2]
[366174452,1750098639966,-3295.801123,0.00024,2]
[366174455,1750098639978,-572.60982878,0.00024,2]
[366174959,1750098645717,-460.0,0.00021917,4]
[366174961,1750098645726,-460.0,0.00022191,4]
[366174963,1750098645736,-460.0,0.00022465,4]
[366174964,1750098645746,-460.0,0.00022739,4]
[366174966,1750098645756,-177.073212,0.00023315,2]
[366174968,1750098645766,-158.9308009,0.00023315,2]
[366174970,1750098645775,-573.9994554,0.00023315,2]
[366174972,1750098645785,-170.202185,0.000238,7]
[366174974,1750098645795,-170.202185,0.000238,7]
[366174976,1750098645804,-18929.57893746,0.00024,2]
[366177847,1750098884973,361.092673,0.00013699,2]
[366177859,1750099325729,-1489.45804719,0.00019786,2]
[366177862,1750099550848,675.12452588,0.000189,2]
[366177863,1750099574396,5000.0,0.00018,2]
[366177866,1750099739160,430.7062918,0.00019725,2]
[366177869,1750099757883,2404.71113513,0.0002,2]
[366177870,1750099757907,627.12253332,0.0002,2]
[366177873,1750099815784,343.038039,0.00013699,2]
[366177874,1750099818672,1968.16633155,0.0002,2]
[366177916,1750099832130,-343.038039,0.00020187,2]
[366177918,1750099832140,-160.0,0.00020234,2]
[366177920,1750099832150,-300.0,0.00020297,2]
[366177922,1750099832160,-162.91700181,0.00020298,2]
[366177924,1750099832181,-6271.08829131,0.00020298,2]
[366178211,1750099837820,-1005.86818639,0.00020298,2]
[366178212,1750099837832,-377.33167231,0.00020298,2]
[366178213,1750099837854,-1476.8542889,0.00020298,2]
[366178214,1750099837931,-705.94055928,0.00020298,2]
[366178215,1750099837942,-190.063806,0.0002066,2]
[366178216,1750099837952,-85.2457693,0.00020723,2]
[366178217,1750099837967,-124.7663047,0.00020723,2]
[366178218,1750099837978,-170.231,0.00020723,2]
[366178219,1750099837990,-1260.62,0.00020941,2]
[366178220,1750099838001,-158.53209674,0.00020964,2]
[366178221,1750099838013,-19966.64908126,0.00021005,2]
[366178222,1750099838026,-4400.00001035,0.00021005,2]
[366178223,1750099838039,-533.35090839,0.00021005,2]
[366178224,1750099838052,-486.66079355,0.00021063,2]
[366178225,1750099838062,-500.0,0.00021064,2]
[366178226,1750099838073,-619.98829806,0.00021064,2]
[366178231,1750099840120,-531.65760662,0.00021064,2]
[366178300,1750099843101,-33694.97467649,0.00021064,2]
[366178301,1750099843111,-346.0,0.00021739,2]
[366178302,1750099843121,-346.0,0.00021767,2]
[366178303,1750099843131,-460.0,0.00021917,4]
[366178304,1750099843140,-460.0,0.00021917,4]
[366178305,1750099843150,-460.0,0.00021917,4]
[366178306,1750099843160,-460.0,0.00021917,4]
[366178307,1750099843169,-460.0,0.00021917,4]
[366178308,1750099843179,-634.92,0.00021917,4]
[366178309,1750099843189,-460.0,0.00021917,4]
[366178311,1750099843199,-460.0,0.00021917,4]
[366178313,1750099843208,-477.24,0.00021917,4]
[366178315,1750099843217,-460.0,0.00021917,4]
[366178317,1750099843226,-460.0,0.00021917,4]
[366178319,1750099843236,-598.06,0.00021917,4]
[366178321,1750099843246,-460.0,0.00021917,4]
[366178323,1750099843255,-460.0,0.00021917,4]
[366178325,1750099843266,-460.0,0.00021917,4]
[366178327,1750099843276,-460.0,0.00021917,4]
[366178329,1750099843287,-236.0,0.00022094,2]
[366178331,1750099843297,-460.0,0.00022191,4]
[366178333,1750099843307,-460.0,0.00022191,4]
[366178335,1750099843316,-460.0,0.00022191,4]
[366178338,1750099843326,-460.0,0.00022191,4]
[366178340,1750099843336,-634.92,0.00022191,4]
[366178342,1750099843350,-460.0,0.00022191,4]
[366178344,1750099843360,-460.0,0.00022191,4]
[366178346,1750099843370,-477.24,0.00022191,4]
[366178348,1750099843380,-460.0,0.00022191,4]
[366178350,1750099843390,-460.0,0.00022191,4]
[366178352,1750099843399,-598.06,0.00022191,4]
[366178354,1750099843409,-460.0,0.00022191,4]
[366178356,1750099843419,-460.0,0.00022191,4]
[366178358,1750099843429,-460.0,0.00022191,4]
[366178361,1750099843440,-460.0,0.00022191,4]
[366178363,1750099843450,-207.4,0.00022239,2]
[366178365,1750099843460,-346.0,0.00022265,2]
[366178366,1750099843469,-221.0,0.00022297,2]
[366178368,1750099843480,-160.0,0.0002233,2]
[366178370,1750099843489,-221.0,0.00022346,2]
[366178372,1750099843499,-346.0,0.00022351,2]
[366178374,1750099843510,-151.0,0.00022362,6]
[366178376,1750099843519,-346.0,0.00022424,2]
[366178378,1750099843529,-460.0,0.00022465,4]
[366178381,1750099843539,-460.0,0.00022465,4]
[366178382,1750099843549,-460.0,0.00022465,4]
[366178401,1750099843726,-460.0,0.00022465,4]
[366178403,1750099843737,-634.92,0.00022465,4]
[366178405,1750099843747,-460.0,0.00022465,4]
[366178407,1750099843757,-460.0,0.00022465,4]
[366178410,1750099843767,-477.24,0.00022465,4]
[366178412,1750099843777,-460.0,0.00022465,4]
[366178414,1750099843789,-460.0,0.00022465,4]
[366178416,1750099843799,-598.06,0.00022465,4]
[366178418,1750099843810,-460.0,0.00022465,4]
[366178420,1750099843819,-460.0,0.00022465,4]
[366178422,1750099843830,-460.0,0.00022465,4]
[366178424,1750099843843,-460.0,0.00022465,4]
[366178426,1750099843853,-158.9308009,0.00022493,2]
[366178428,1750099843862,-177.073212,0.00022493,2]
[366178430,1750099843872,-153.0,0.00022493,2]
[366178432,1750099843882,-573.9994554,0.00022493,2]
[366178435,1750099843893,-177.073212,0.00022493,2]
[366178437,1750099843903,-158.9308009,0.00022493,2]
[366178439,1750099843913,-573.9994554,0.00022493,2]
[366178441,1750099843926,-153.0,0.00022493,2]
[366178443,1750099843935,-350.7979437,0.00022493,2]
[366178445,1750099843945,-158.9308009,0.00022493,2]
[366178447,1750099843954,-1147.1450368,0.00022493,2]
[366178449,1750099843964,-158.9308009,0.00022493,2]
[366178451,1750099843978,-158.9308009,0.00022493,2]
[366178453,1750099843988,-317.1429972,0.00022493,2]
[366178455,1750099843998,-153.0,0.00022493,2]
[366178457,1750099844008,-151.0,0.00022644,6]
[366178459,1750099844019,-460.0,0.00022739,4]
[366178461,1750099844029,-460.0,0.00022739,4]
[366178463,1750099844039,-460.0,0.00022739,4]
[366178466,1750099844049,-460.0,0.00022739,4]
[366178468,1750099844060,-634.92,0.00022739,4]
[366178470,1750099844069,-460.0,0.00022739,4]
[366178472,1750099844078,-460.0,0.00022739,4]
[366178474,1750099844088,-477.24,0.00022739,4]
[366178476,1750099844098,-460.0,0.00022739,4]
[366178478,1750099844108,-460.0,0.00022739,4]
[366178480,1750099844117,-598.06,0.00022739,4]
[366178482,1750099844128,-460.0,0.00022739,4]
[366178484,1750099844138,-460.0,0.00022739,4]
[366178486,1750099844148,-460.0,0.00022739,4]
[366178488,1750099844157,-460.0,0.00022739,4]
[366178490,1750099844166,-2521.24,0.00022844,2]
[366178492,1750099844176,-221.0,0.00022915,2]
[366178494,1750099844186,-151.0,0.00022926,6]
[366178496,1750099844196,-221.0,0.00022954,2]
[366178498,1750099844205,-460.0,0.00023013,4]
[366178499,1750099844215,-460.0,0.00023013,4]
[366178501,1750099844224,-491.74,0.00023013,4]
[366178503,1750099844234,-634.92,0.00023013,4]
[366178505,1750099844244,-460.0,0.00023013,4]
[366178507,1750099844254,-477.24,0.00023013,4]
[366178509,1750099844263,-460.0,0.00023013,4]
[366178511,1750099844273,-598.06,0.00023013,4]
[366178513,1750099844283,-460.0,0.00023013,4]
[366178514,1750099844293,-215.07,0.00023013,4]
[366178516,1750099844303,-460.0,0.00023013,4]
[366178518,1750099844312,-460.0,0.00023013,4]
[366178520,1750099844323,-500.0,0.00023153,2]
[366178522,1750099844332,-210.06497633,0.00023157,2]
[366178524,1750099844342,-355.94586698,0.00023187,2]
[366178526,1750099844353,-430.89292246,0.00023199,2]
[366178528,1750099844362,-151.0,0.00023208,6]
[366178530,1750099844373,-400.0,0.00023256,2]
[366178532,1750099844382,-153.0,0.0002326,2]
[366178534,1750099844392,-153.0,0.0002326,2]
[366178536,1750099844402,-153.0,0.0002326,2]
[366178538,1750099844411,-153.0,0.0002326,2]
[366178540,1750099844421,-153.0,0.0002326,2]
[366178542,1750099844430,-153.0,0.0002326,2]
[366178544,1750099844440,-153.0,0.0002326,2]
[366178545,1750099844451,-153.0,0.0002326,2]
[366178547,1750099844461,-153.0,0.0002326,2]
[366178549,1750099844471,-460.0,0.00023287,4]
[366178551,1750099844481,-460.0,0.00023287,4]
[366178553,1750099844491,-634.92,0.00023287,4]
[366178555,1750099844501,-460.0,0.00023287,4]
[366178557,1750099844511,-477.24,0.00023287,4]
[366178559,1750099844522,-460.0,0.00023287,4]
[366178561,1750099844532,-598.06,0.00023287,4]
[366178563,1750099844541,-460.0,0.00023287,4]
[366178565,1750099844551,-460.0,0.00023287,4]
[366178567,1750099844561,-460.0,0.00023287,4]
[366178569,1750099844571,-691.39,0.000233,2]
[366178571,1750099844581,-153.0,0.00023315,2]
[366178572,1750099844591,-153.0,0.00023315,2]
[366178574,1750099844601,-153.0,0.00023315,2]
[366178576,1750099844613,-153.0,0.00023315,2]
[366178578,1750099844623,-176.5965108,0.00023315,2]
[366178580,1750099844634,-458.8132545,0.00023315,2]
[366178582,1750099844644,-573.1455814,0.00023315,2]
[366178584,1750099844654,-155.2600871,0.00023315,2]
[366178586,1750099844663,-317.7428168,0.00023315,2]
[366178588,1750099844673,-573.9994554,0.00023315,2]
[366178590,1750099844683,-177.073212,0.00023315,2]
[366178591,1750099844692,-573.9994554,0.00023315,2]
[366178593,1750099844702,-177.073212,0.00023315,2]
[366178595,1750099844712,-573.9994554,0.00023315,2]
[366178597,1750099844723,-177.073212,0.00023315,2]
[366178599,1750099844733,-573.9994554,0.00023315,2]
[366178601,1750099844743,-177.073212,0.00023315,2]
[366178603,1750099844753,-572.9321129,0.00023315,2]
[366178605,1750099844763,-153.0000001,0.00023315,2]
[366178607,1750099844773,-177.073212,0.00023315,2]
[366178609,1750099844782,-176.5965108,0.00023315,2]
[366178611,1750099844792,-153.0,0.00023315,2]
[366178612,1750099844802,-153.0,0.00023315,2]
[366178614,1750099844812,-153.0,0.00023315,2]
[366178617,1750099844831,-153.0,0.00023315,2]
[366178620,1750099844847,-153.0,0.00023315,2]
[366178622,1750099844863,-430.89292246,0.00023348,2]
[366178624,1750099844873,-355.94586694,0.00023365,2]
[366178626,1750099844884,-151.0,0.0002349,6]
[366178628,1750099844894,-500.0,0.000235,2]
[366178629,1750099844906,-355.94586694,0.00023544,2]
[366178631,1750099844917,-460.0,0.00023561,4]
[366178633,1750099844927,-460.0,0.00023561,4]
[366178635,1750099844937,-634.92,0.00023561,4]
[366178637,1750099844948,-288.96373132,0.00023561,4]
[366178639,1750099844958,-477.24,0.00023561,4]
[366178641,1750099844971,-460.0,0.00023561,4]
[366178643,1750099844982,-598.06,0.00023561,4]
[366178645,1750099844992,-460.0,0.00023561,4]
[366178647,1750099845002,-460.0,0.00023561,4]
[366178649,1750099845014,-460.0,0.00023561,4]